[Event "Titled Tuesday Blitz November 01 Early 2022"]
[White "Nurmanova, Alua"]
[Black "Weetik, Vjacheslav"]
[WhiteFideId "13729390"]
[BlackFideId "4153472"]
[WhiteElo "2088"]
[BlackElo "2469"]
[Result "1-0"]
[Round "09"]
[TimeControl "180+1"]
[Date "2022.11.02"]
[WhiteClock "0:00:11"]
[BlackClock "0:00:01"]

1. e4 {[%clk 0:03:00]}  c6 {[%clk 0:02:53]} 2. d4 {[%clk 0:03:00]}  d5 {[%clk 0:02:53]} 3. e5 {[%clk 0:02:59]}  Bf5 {[%clk 0:02:53]} 4. h4 {[%clk 0:02:58]}  Qb6 {[%clk 0:02:52]} 5. c4 {[%clk 0:02:52]}  e6 {[%clk 0:02:48]} 6. c5 {[%clk 0:02:46]}  Qc7 {[%clk 0:02:47]} 7. Nc3 {[%clk 0:02:46]}  h6 {[%clk 0:02:37]} 8. b4 {[%clk 0:02:43]}  Nd7 {[%clk 0:02:35]} 9. g4 {[%clk 0:02:35]}  Bh7 {[%clk 0:02:32]} 10. Bd3 {[%clk 0:02:24]}  Bxd3 {[%clk 0:02:30]} 11. Qxd3 {[%clk 0:02:25]}  h5 {[%clk 0:02:24]} 12. f3 {[%clk 0:02:19]}  Ne7 {[%clk 0:02:09]} 13. Nge2 {[%clk 0:02:13]}  b6 {[%clk 0:01:55]} 14. Be3 {[%clk 0:02:12]}  Ng6 {[%clk 0:01:47]} 15. Kf2 {[%clk 0:02:04]}  Be7 {[%clk 0:01:32]} 16. g5 {[%clk 0:01:56]}  Rb8 {[%clk 0:01:08]} 17. Rab1 {[%clk 0:01:41]}  Bd8 {[%clk 0:00:44]} 18. f4 {[%clk 0:01:34]}  Ne7 {[%clk 0:00:44]} 19. Ng3 {[%clk 0:01:32]}  g6 {[%clk 0:00:45]} 20. Rhc1 {[%clk 0:01:29]}  Kf8 {[%clk 0:00:43]} 21. cxb6 {[%clk 0:01:21]}  Nxb6 {[%clk 0:00:39]} 22. Nb5 {[%clk 0:01:17]}  Qd7 {[%clk 0:00:37]} 23. Nd6 {[%clk 0:01:14]}  Bc7 {[%clk 0:00:37]} 24. b5 {[%clk 0:01:08]}  Bxd6 {[%clk 0:00:37]} 25. bxc6 {[%clk 0:01:06]}  Nxc6 {[%clk 0:00:35]} 26. exd6 {[%clk 0:01:05]}  Kg7 {[%clk 0:00:30]} 27. Rc5 {[%clk 0:00:48]}  Nc4 {[%clk 0:00:29]} 28. Rxb8 {[%clk 0:00:44]}  Rxb8 {[%clk 0:00:28]} 29. f5 {[%clk 0:00:38]}  Rb2+ {[%clk 0:00:24]} 30. Kg1 {[%clk 0:00:34]}  exf5 {[%clk 0:00:19]} 31. Rxd5 {[%clk 0:00:32]}  f4 {[%clk 0:00:19]} 32. Bxf4 {[%clk 0:00:26]}  Qh3 {[%clk 0:00:15]} 33. Nxh5+ {[%clk 0:00:26]}  gxh5 {[%clk 0:00:14]} 34. Qxh3 {[%clk 0:00:27]}  Nb4 {[%clk 0:00:05]} 35. Be5+ {[%clk 0:00:23]}  Kg6 {[%clk 0:00:04]} 36. Rc5 {[%clk 0:00:21]}  Nd2 {[%clk 0:00:03]} 37. Rc1 {[%clk 0:00:16]}  Ne4 {[%clk 0:00:02]} 38. Qe3 {[%clk 0:00:15]}  Nd2 {[%clk 0:00:01]} 39. Qf4 {[%clk 0:00:14]}  Nd5 {[%clk 0:00:01]} 40. Qg3 {[%clk 0:00:11]}  Ne4 {[%clk 0:00:01]} 41. Qd3 {[%clk 0:00:11]} 1-0


[Site "https://www.chess.com"]

[Event "Titled Tuesday Blitz November 01 Early 2022"]
[White "Orozbaev, Eldiar"]
[Black "Svane, Rasmus"]
[WhiteFideId "13802240"]
[BlackFideId "4657101"]
[WhiteElo "2244"]
[BlackElo "2674"]
[Result "0-1"]
[Round "09"]
[TimeControl "180+1"]
[Date "2022.11.01"]
[WhiteClock "0:00:27"]
[BlackClock "0:02:18"]

1. e4 {[%clk 0:02:37]}  c6 {[%clk 0:02:59]} 2. Nc3 {[%clk 0:02:35]}  d5 {[%clk 0:03:00]} 3. Nf3 {[%clk 0:02:36]}  dxe4 {[%clk 0:03:00]} 4. Nxe4 {[%clk 0:02:30]}  Nf6 {[%clk 0:03:00]} 5. Nxf6+ {[%clk 0:02:28]}  exf6 {[%clk 0:03:01]} 6. Bc4 {[%clk 0:02:20]}  Bd6 {[%clk 0:03:02]} 7. O-O {[%clk 0:02:17]}  O-O {[%clk 0:03:03]} 8. d4 {[%clk 0:02:16]}  Nd7 {[%clk 0:03:03]} 9. c3 {[%clk 0:02:16]}  Re8 {[%clk 0:02:56]} 10. Be3 {[%clk 0:02:09]}  Nf8 {[%clk 0:02:56]} 11. h3 {[%clk 0:02:01]}  Ng6 {[%clk 0:02:56]} 12. Qb3 {[%clk 0:01:58]}  Re7 {[%clk 0:02:54]} 13. Rfe1 {[%clk 0:01:58]}  Bf5 {[%clk 0:02:51]} 14. Bd2 {[%clk 0:01:46]}  Rxe1+ {[%clk 0:02:38]} 15. Rxe1 {[%clk 0:01:47]}  Qd7 {[%clk 0:02:39]} 16. g4 {[%clk 0:01:07]}  Bxg4 {[%clk 0:02:34]} 17. hxg4 {[%clk 0:01:05]}  Qxg4+ {[%clk 0:02:35]} 18. Kf1 {[%clk 0:01:05]}  Qxf3 {[%clk 0:02:30]} 19. Qxb7 {[%clk 0:00:47]}  Rf8 {[%clk 0:02:24]} 20. Qd7 {[%clk 0:00:36]}  Bg3 {[%clk 0:02:21]} 21. Be3 {[%clk 0:00:27]}  Nf4 {[%clk 0:02:18]} 0-1


[Site "https://www.chess.com"]

[Event "Titled Tuesday Blitz November 01 Early 2022"]
[White "Ovchinnikov, Vsevolod"]
[Black "Predke, Alexandr"]
[WhiteFideId "24176842"]
[BlackFideId "24107581"]
[WhiteElo "2376"]
[BlackElo "2614"]
[Result "0-1"]
[Round "09"]
[TimeControl "180+1"]
[Date "2022.11.01"]
[WhiteClock "0:00:03"]
[BlackClock "0:00:05"]

1. d4 {[%clk 0:03:00]}  Nf6 {[%clk 0:02:58]} 2. c4 {[%clk 0:02:59]}  e6 {[%clk 0:02:59]} 3. g3 {[%clk 0:02:59]}  d5 {[%clk 0:03:00]} 4. Bg2 {[%clk 0:03:00]}  Be7 {[%clk 0:03:00]} 5. Nf3 {[%clk 0:03:01]}  O-O {[%clk 0:03:01]} 6. Nc3 {[%clk 0:03:01]}  c6 {[%clk 0:03:02]} 7. Qb3 {[%clk 0:03:01]}  a5 {[%clk 0:03:01]} 8. a3 {[%clk 0:02:54]}  a4 {[%clk 0:03:00]} 9. Qa2 {[%clk 0:02:54]}  b6 {[%clk 0:02:42]} 10. O-O {[%clk 0:02:49]}  Ba6 {[%clk 0:02:41]} 11. cxd5 {[%clk 0:02:49]}  cxd5 {[%clk 0:02:38]} 12. Bg5 {[%clk 0:02:47]}  Nbd7 {[%clk 0:02:26]} 13. Rfc1 {[%clk 0:02:44]}  Bc4 {[%clk 0:01:41]} 14. Qb1 {[%clk 0:02:43]}  h6 {[%clk 0:01:41]} 15. Bxf6 {[%clk 0:02:43]}  Nxf6 {[%clk 0:01:42]} 16. Ne5 {[%clk 0:02:37]}  b5 {[%clk 0:01:42]} 17. Nc6 {[%clk 0:02:31]}  Qd7 {[%clk 0:01:42]} 18. Nxe7+ {[%clk 0:02:32]}  Qxe7 {[%clk 0:01:42]} 19. e3 {[%clk 0:02:32]}  Rfb8 {[%clk 0:01:36]} 20. Bf1 {[%clk 0:02:33]}  Ne8 {[%clk 0:01:24]} 21. Na2 {[%clk 0:02:15]}  Nd6 {[%clk 0:01:19]} 22. Nb4 {[%clk 0:02:15]}  Rc8 {[%clk 0:01:17]} 23. Bg2 {[%clk 0:02:06]}  f5 {[%clk 0:01:12]} 24. Qc2 {[%clk 0:02:03]}  g5 {[%clk 0:01:10]} 25. Qd1 {[%clk 0:02:01]}  Qf6 {[%clk 0:01:04]} 26. Qe1 {[%clk 0:01:43]}  Kg7 {[%clk 0:01:02]} 27. Rc2 {[%clk 0:01:43]}  Ra7 {[%clk 0:00:51]} 28. Rac1 {[%clk 0:01:42]}  f4 {[%clk 0:00:36]} 29. exf4 {[%clk 0:01:27]}  gxf4 {[%clk 0:00:37]} 30. Qe5 {[%clk 0:01:26]}  Qxe5 {[%clk 0:00:36]} 31. dxe5 {[%clk 0:01:27]}  Nf5 {[%clk 0:00:36]} 32. Rd2 {[%clk 0:01:10]}  Rf7 {[%clk 0:00:34]} 33. Bh3 {[%clk 0:01:00]}  h5 {[%clk 0:00:24]} 34. Rc3 {[%clk 0:00:50]}  Kh6 {[%clk 0:00:19]} 35. Rf3 {[%clk 0:00:44]}  fxg3 {[%clk 0:00:19]} 36. hxg3 {[%clk 0:00:44]}  Rcf8 {[%clk 0:00:19]} 37. Bxf5 {[%clk 0:00:31]}  Rxf5 {[%clk 0:00:20]} 38. Rxf5 {[%clk 0:00:32]}  Rxf5 {[%clk 0:00:21]} 39. Nc6 {[%clk 0:00:32]}  h4 {[%clk 0:00:20]} 40. Kg2 {[%clk 0:00:29]}  hxg3 {[%clk 0:00:19]} 41. Kxg3 {[%clk 0:00:29]}  Rg5+ {[%clk 0:00:19]} 42. Kf4 {[%clk 0:00:26]}  Rg1 {[%clk 0:00:18]} 43. Nd4 {[%clk 0:00:24]}  Re1 {[%clk 0:00:06]} 44. Nxe6 {[%clk 0:00:20]}  Kg6 {[%clk 0:00:07]} 45. f3 {[%clk 0:00:19]}  Rh1 {[%clk 0:00:04]} 46. Rg2+ {[%clk 0:00:18]}  Kf7 {[%clk 0:00:04]} 47. Nd4 {[%clk 0:00:17]}  Rh4+ {[%clk 0:00:04]} 48. Rg4 {[%clk 0:00:16]}  Rh5 {[%clk 0:00:03]} 49. Nf5 {[%clk 0:00:11]}  Rh2 {[%clk 0:00:03]} 50. Rg7+ {[%clk 0:00:11]}  Kf8 {[%clk 0:00:03]} 51. e6 {[%clk 0:00:09]}  d4 {[%clk 0:00:04]} 52. Rf7+ {[%clk 0:00:07]}  Kg8 {[%clk 0:00:04]} 53. Ne7+ {[%clk 0:00:05]}  Kh8 {[%clk 0:00:04]} 54. Ng6+ {[%clk 0:00:05]}  Kg8 {[%clk 0:00:04]} 55. Rf8+ {[%clk 0:00:06]}  Kg7 {[%clk 0:00:05]} 56. e7 {[%clk 0:00:06]}  Bf7 {[%clk 0:00:03]} 57. Ne5 {[%clk 0:00:05]}  Bh5 {[%clk 0:00:03]} 58. e8=Q {[%clk 0:00:05]}  Bxe8 {[%clk 0:00:04]} 59. Rxe8 {[%clk 0:00:06]}  Rxb2 {[%clk 0:00:03]} 60. Re7+ {[%clk 0:00:06]}  Kf6 {[%clk 0:00:03]} 61. Rf7+ {[%clk 0:00:06]}  Ke6 {[%clk 0:00:03]} 62. Rb7 {[%clk 0:00:07]}  Rb3 {[%clk 0:00:02]} 63. Rb6+ {[%clk 0:00:05]}  Kd5 {[%clk 0:00:03]} 64. Nc6 {[%clk 0:00:03]}  Kc5 {[%clk 0:00:02]} 65. Ra6 {[%clk 0:00:03]}  Rxa3 {[%clk 0:00:02]} 66. Ke4 {[%clk 0:00:03]}  Re3+ {[%clk 0:00:02]} 67. Kf4 {[%clk 0:00:03]}  Re6 {[%clk 0:00:03]} 68. Nb8 {[%clk 0:00:02]}  Rxa6 {[%clk 0:00:03]} 69. Nxa6+ {[%clk 0:00:03]}  Kc4 {[%clk 0:00:03]} 70. Ke4 {[%clk 0:00:03]}  a3 {[%clk 0:00:04]} 71. f4 {[%clk 0:00:02]}  a2 {[%clk 0:00:04]} 72. f5 {[%clk 0:00:03]}  a1=Q {[%clk 0:00:05]} 0-1


[Site "https://www.chess.com"]

[Event "Titled Tuesday Blitz November 01 Early 2022"]
[White "Ozdemir, Serhan Berat"]
[Black "Rohith Krishna S"]
[WhiteFideId "6374611"]
[BlackFideId "46617051"]
[WhiteElo "2016"]
[BlackElo "2270"]
[Result "0-1"]
[Round "09"]
[TimeControl "180+1"]
[Date "2022.11.02"]
[WhiteClock "0:00:02"]
[BlackClock "0:01:34"]

1. e4 {[%clk 0:02:42]}  c5 {[%clk 0:03:00]} 2. Nf3 {[%clk 0:02:40]}  Nc6 {[%clk 0:03:00]} 3. Bb5 {[%clk 0:02:40]}  g6 {[%clk 0:03:00]} 4. Bxc6 {[%clk 0:02:38]}  bxc6 {[%clk 0:02:59]} 5. d4 {[%clk 0:02:38]}  cxd4 {[%clk 0:02:58]} 6. Qxd4 {[%clk 0:02:39]}  Nf6 {[%clk 0:02:50]} 7. e5 {[%clk 0:02:32]}  Nh5 {[%clk 0:02:51]} 8. O-O {[%clk 0:02:18]}  Ng7 {[%clk 0:02:49]} 9. Nc3 {[%clk 0:02:16]}  Ne6 {[%clk 0:02:49]} 10. Qh4 {[%clk 0:02:14]}  Bg7 {[%clk 0:02:48]} 11. Bh6 {[%clk 0:02:07]}  O-O {[%clk 0:02:48]} 12. Ne4 {[%clk 0:01:59]}  d5 {[%clk 0:02:28]} 13. exd6 {[%clk 0:01:07]}  exd6 {[%clk 0:02:27]} 14. Neg5 {[%clk 0:00:57]}  f6 {[%clk 0:01:48]} 15. Nxe6 {[%clk 0:00:21]}  Bxe6 {[%clk 0:01:49]} 16. Bxg7 {[%clk 0:00:21]}  Kxg7 {[%clk 0:01:48]} 17. Rfe1 {[%clk 0:00:18]}  Bf7 {[%clk 0:01:48]} 18. Rad1 {[%clk 0:00:18]}  d5 {[%clk 0:01:47]} 19. c4 {[%clk 0:00:15]}  Rb8 {[%clk 0:01:45]} 20. b3 {[%clk 0:00:15]}  Qd6 {[%clk 0:01:39]} 21. cxd5 {[%clk 0:00:14]}  Bxd5 {[%clk 0:01:39]} 22. Nd4 {[%clk 0:00:11]}  Rbe8 {[%clk 0:01:37]} 23. Qg4 {[%clk 0:00:10]}  Kg8 {[%clk 0:01:36]} 24. h4 {[%clk 0:00:05]}  Qb4 {[%clk 0:01:35]} 25. Qg3 {[%clk 0:00:02]}  Rxe1+ {[%clk 0:01:34]} 0-1


[Site "https://www.chess.com"]

[Event "Titled Tuesday Blitz November 01 Early 2022"]
[White "Ozen, Bahadir"]
[Black "Martinez Alcantara, Jose Eduardo"]
[WhiteFideId "6337058"]
[BlackFideId "3805662"]
[WhiteElo "2503"]
[BlackElo "2703"]
[Result "0-1"]
[Round "09"]
[TimeControl "180+1"]
[Date "2022.11.01"]
[WhiteClock "0:00:03"]
[BlackClock "0:00:44"]

1. g3 {[%clk 0:03:00]}  d5 {[%clk 0:02:59]} 2. Bg2 {[%clk 0:03:01]}  Nf6 {[%clk 0:03:00]} 3. d3 {[%clk 0:03:01]}  c6 {[%clk 0:03:01]} 4. Nf3 {[%clk 0:03:01]}  Bf5 {[%clk 0:03:01]} 5. O-O {[%clk 0:03:01]}  h6 {[%clk 0:03:00]} 6. c4 {[%clk 0:03:01]}  dxc4 {[%clk 0:03:01]} 7. Ne5 {[%clk 0:03:01]}  Nbd7 {[%clk 0:02:55]} 8. Nxc4 {[%clk 0:03:01]}  e5 {[%clk 0:02:49]} 9. b4 {[%clk 0:02:39]}  Be6 {[%clk 0:02:42]} 10. a3 {[%clk 0:02:29]}  Be7 {[%clk 0:02:37]} 11. Bb2 {[%clk 0:02:29]}  e4 {[%clk 0:02:38]} 12. Na5 {[%clk 0:02:09]}  Qc7 {[%clk 0:02:38]} 13. dxe4 {[%clk 0:02:08]}  O-O {[%clk 0:02:39]} 14. Qc2 {[%clk 0:02:07]}  Rac8 {[%clk 0:02:37]} 15. Nd2 {[%clk 0:02:03]}  c5 {[%clk 0:02:36]} 16. Rac1 {[%clk 0:01:50]}  b5 {[%clk 0:02:36]} 17. e5 {[%clk 0:01:41]}  Nxe5 {[%clk 0:02:25]} 18. Bxe5 {[%clk 0:01:38]}  Qxe5 {[%clk 0:02:26]} 19. Nc6 {[%clk 0:01:38]}  Rxc6 {[%clk 0:02:27]} 20. Bxc6 {[%clk 0:01:39]}  cxb4 {[%clk 0:02:28]} 21. Nf3 {[%clk 0:01:35]}  Qh5 {[%clk 0:02:27]} 22. axb4 {[%clk 0:01:33]}  Bxb4 {[%clk 0:02:27]} 23. Qb2 {[%clk 0:01:16]}  a5 {[%clk 0:02:26]} 24. Qe5 {[%clk 0:01:17]}  Qxe5 {[%clk 0:02:06]} 25. Nxe5 {[%clk 0:01:18]}  Rb8 {[%clk 0:02:07]} 26. Rb1 {[%clk 0:01:12]}  Bd6 {[%clk 0:02:07]} 27. f4 {[%clk 0:01:00]}  b4 {[%clk 0:02:05]} 28. Ra1 {[%clk 0:00:54]}  Bc7 {[%clk 0:01:58]} 29. Rfb1 {[%clk 0:00:39]}  g5 {[%clk 0:01:53]} 30. Kg2 {[%clk 0:00:38]}  Kg7 {[%clk 0:01:52]} 31. e4 {[%clk 0:00:32]}  b3 {[%clk 0:01:45]} 32. Ra3 {[%clk 0:00:26]}  Rb6 {[%clk 0:01:20]} 33. Rxa5 {[%clk 0:00:22]}  Rb4 {[%clk 0:01:11]} 34. Ra4 {[%clk 0:00:19]}  Rb6 {[%clk 0:01:11]} 35. Ra7 {[%clk 0:00:14]}  Bxe5 {[%clk 0:00:55]} 36. fxe5 {[%clk 0:00:14]}  Rxc6 {[%clk 0:00:56]} 37. exf6+ {[%clk 0:00:14]}  Kxf6 {[%clk 0:00:57]} 38. Rb7 {[%clk 0:00:09]}  Rc2+ {[%clk 0:00:57]} 39. Kg1 {[%clk 0:00:09]}  Rc3 {[%clk 0:00:55]} 40. Rb5 {[%clk 0:00:09]}  Re3 {[%clk 0:00:55]} 41. e5+ {[%clk 0:00:08]}  Kf5 {[%clk 0:00:54]} 42. Kf2 {[%clk 0:00:07]}  Rc3 {[%clk 0:00:53]} 43. Rb2 {[%clk 0:00:05]}  h5 {[%clk 0:00:47]} 44. Rb4 {[%clk 0:00:03]}  Rc2+ {[%clk 0:00:44]} 0-1


[Site "https://www.chess.com"]

[Event "Titled Tuesday Blitz November 01 Early 2022"]
[White "Pap, Gyula"]
[Black "Kustar, Sandor"]
[WhiteFideId "725323"]
[BlackFideId "702900"]
[WhiteElo "2519"]
[BlackElo "2377"]
[Result "1-0"]
[Round "09"]
[TimeControl "180+1"]
[Date "2022.11.02"]
[WhiteClock "0:00:17"]
[BlackClock "0:00:02"]

1. d4 {[%clk 0:03:00]}  Nf6 {[%clk 0:02:59]} 2. c4 {[%clk 0:03:00]}  e6 {[%clk 0:02:58]} 3. Nc3 {[%clk 0:03:01]}  c5 {[%clk 0:02:58]} 4. d5 {[%clk 0:03:01]}  exd5 {[%clk 0:02:58]} 5. cxd5 {[%clk 0:03:02]}  d6 {[%clk 0:02:58]} 6. Nf3 {[%clk 0:03:02]}  g6 {[%clk 0:02:58]} 7. Bf4 {[%clk 0:03:02]}  Bg7 {[%clk 0:02:46]} 8. Qa4+ {[%clk 0:03:00]}  Kf8 {[%clk 0:02:20]} 9. e4 {[%clk 0:02:40]}  Ne8 {[%clk 0:02:13]} 10. Qc2 {[%clk 0:02:29]}  Bg4 {[%clk 0:02:11]} 11. Be2 {[%clk 0:02:29]}  Bxf3 {[%clk 0:02:10]} 12. Bxf3 {[%clk 0:02:30]}  Nd7 {[%clk 0:02:10]} 13. O-O {[%clk 0:02:30]}  a6 {[%clk 0:02:02]} 14. a4 {[%clk 0:02:29]}  h6 {[%clk 0:01:58]} 15. Be2 {[%clk 0:02:27]}  Kg8 {[%clk 0:01:57]} 16. Kh1 {[%clk 0:02:21]}  Rc8 {[%clk 0:01:56]} 17. Bg3 {[%clk 0:02:18]}  h5 {[%clk 0:01:54]} 18. h3 {[%clk 0:02:16]}  Qe7 {[%clk 0:01:24]} 19. f4 {[%clk 0:02:14]}  Kh7 {[%clk 0:01:15]} 20. Rae1 {[%clk 0:02:14]}  Rf8 {[%clk 0:01:12]} 21. e5 {[%clk 0:02:07]}  dxe5 {[%clk 0:01:09]} 22. f5 {[%clk 0:02:08]}  e4 {[%clk 0:00:55]} 23. Nxe4 {[%clk 0:02:05]}  Ne5 {[%clk 0:00:44]} 24. Bxh5 {[%clk 0:01:55]}  Kg8 {[%clk 0:00:40]} 25. d6 {[%clk 0:01:46]}  Qd8 {[%clk 0:00:27]} 26. fxg6 {[%clk 0:01:34]}  Nxg6 {[%clk 0:00:22]} 27. Qb3 {[%clk 0:01:18]}  c4 {[%clk 0:00:19]} 28. Qxb7 {[%clk 0:01:18]}  Nf6 {[%clk 0:00:10]} 29. Bxg6 {[%clk 0:01:12]}  fxg6 {[%clk 0:00:08]} 30. Ng5 {[%clk 0:01:11]}  Qd7 {[%clk 0:00:06]} 31. Re7 {[%clk 0:01:01]}  Qxb7 {[%clk 0:00:05]} 32. Rxb7 {[%clk 0:01:02]}  Nh5 {[%clk 0:00:05]} 33. Rxf8+ {[%clk 0:00:52]}  Rxf8 {[%clk 0:00:04]} 34. Rxg7+ {[%clk 0:00:26]}  Nxg7 {[%clk 0:00:03]} 35. Be1 {[%clk 0:00:21]}  Rf1+ {[%clk 0:00:03]} 36. Kh2 {[%clk 0:00:21]}  Rxe1 {[%clk 0:00:04]} 37. Kg3 {[%clk 0:00:18]}  Rd1 {[%clk 0:00:04]} 38. Ne4 {[%clk 0:00:18]}  Nf5+ {[%clk 0:00:05]} 39. Kf4 {[%clk 0:00:19]}  Nxd6 {[%clk 0:00:05]} 40. Nc3 {[%clk 0:00:20]}  Rd3 {[%clk 0:00:05]} 41. Ke5 {[%clk 0:00:18]}  Rxc3 {[%clk 0:00:04]} 42. bxc3 {[%clk 0:00:19]}  Nb7 {[%clk 0:00:03]} 43. Kd5 {[%clk 0:00:19]}  Na5 {[%clk 0:00:03]} 44. Kc5 {[%clk 0:00:19]}  Kf7 {[%clk 0:00:03]} 45. Kb6 {[%clk 0:00:18]}  Nb3 {[%clk 0:00:03]} 46. Kxa6 {[%clk 0:00:19]}  Ke6 {[%clk 0:00:02]} 47. Kb5 {[%clk 0:00:19]}  Kd6 {[%clk 0:00:03]} 48. Kxc4 {[%clk 0:00:18]}  Na5+ {[%clk 0:00:03]} 49. Kb5 {[%clk 0:00:18]}  Nc6 {[%clk 0:00:03]} 50. a5 {[%clk 0:00:18]}  Kc7 {[%clk 0:00:03]} 51. a6 {[%clk 0:00:18]}  Na7+ {[%clk 0:00:02]} 52. Kc5 {[%clk 0:00:18]}  Kd7 {[%clk 0:00:02]} 53. Kb6 {[%clk 0:00:17]}  Nc8+ {[%clk 0:00:02]} 54. Kb7 {[%clk 0:00:17]}  Nd6+ {[%clk 0:00:03]} 55. Kb8 {[%clk 0:00:18]}  Nb5 {[%clk 0:00:02]} 56. c4 {[%clk 0:00:17]} 1-0


[Site "https://www.chess.com"]

[Event "Titled Tuesday Blitz November 01 Early 2022"]
[White "Paravyan, David"]
[Black "Gokerkan, Cem Kaan"]
[WhiteFideId "4194985"]
[BlackFideId "6336760"]
[WhiteElo "2555"]
[BlackElo "2365"]
[Result "0-1"]
[Round "09"]
[TimeControl "180+1"]
[Date "2022.11.01"]
[WhiteClock "0:00:01"]
[BlackClock "0:00:24"]

1. e4 {[%clk 0:03:00]}  c5 {[%clk 0:03:00]} 2. Nf3 {[%clk 0:03:00]}  d6 {[%clk 0:03:00]} 3. d4 {[%clk 0:02:59]}  cxd4 {[%clk 0:03:01]} 4. Nxd4 {[%clk 0:03:00]}  Nf6 {[%clk 0:03:02]} 5. Nc3 {[%clk 0:03:00]}  a6 {[%clk 0:03:03]} 6. Bg5 {[%clk 0:03:00]}  e6 {[%clk 0:03:01]} 7. f4 {[%clk 0:03:01]}  Be7 {[%clk 0:03:00]} 8. Qf3 {[%clk 0:02:59]}  Qc7 {[%clk 0:03:01]} 9. O-O-O {[%clk 0:02:59]}  Nbd7 {[%clk 0:03:01]} 10. g4 {[%clk 0:03:00]}  b5 {[%clk 0:03:00]} 11. Bxf6 {[%clk 0:03:00]}  Nxf6 {[%clk 0:03:00]} 12. g5 {[%clk 0:03:00]}  Nd7 {[%clk 0:03:01]} 13. f5 {[%clk 0:03:00]}  O-O {[%clk 0:03:00]} 14. Rg1 {[%clk 0:02:56]}  b4 {[%clk 0:02:56]} 15. Nce2 {[%clk 0:02:56]}  e5 {[%clk 0:02:56]} 16. f6 {[%clk 0:02:56]}  exd4 {[%clk 0:02:56]} 17. fxe7 {[%clk 0:02:57]}  Re8 {[%clk 0:02:56]} 18. Nxd4 {[%clk 0:02:58]}  Ne5 {[%clk 0:02:56]} 19. Qb3 {[%clk 0:02:57]}  a5 {[%clk 0:02:54]} 20. Nb5 {[%clk 0:02:55]}  Qc5 {[%clk 0:02:41]} 21. Nxd6 {[%clk 0:02:51]}  Qxg1 {[%clk 0:02:04]} 22. Nxe8 {[%clk 0:02:51]}  Qxg5+ {[%clk 0:01:30]} 23. Kb1 {[%clk 0:02:50]}  Qxe7 {[%clk 0:01:30]} 24. Nd6 {[%clk 0:02:48]}  Be6 {[%clk 0:01:28]} 25. Qg3 {[%clk 0:02:45]}  Rd8 {[%clk 0:01:15]} 26. Bc4 {[%clk 0:00:20]}  Nxc4 {[%clk 0:01:08]} 27. Rg1 {[%clk 0:00:20]}  g6 {[%clk 0:00:59]} 28. Nxc4 {[%clk 0:00:20]}  Bxc4 {[%clk 0:00:59]} 29. b3 {[%clk 0:00:21]}  Be6 {[%clk 0:00:58]} 30. Qe5 {[%clk 0:00:21]}  Qd6 {[%clk 0:00:55]} 31. Qxa5 {[%clk 0:00:21]}  Rc8 {[%clk 0:00:48]} 32. h4 {[%clk 0:00:14]}  Qc5 {[%clk 0:00:42]} 33. Qxc5 {[%clk 0:00:11]}  Rxc5 {[%clk 0:00:43]} 34. Rd1 {[%clk 0:00:09]}  f5 {[%clk 0:00:41]} 35. exf5 {[%clk 0:00:02]}  Bxf5 {[%clk 0:00:42]} 36. Rd2 {[%clk 0:00:01]}  Kg7 {[%clk 0:00:40]} 37. Kc1 {[%clk 0:00:01]}  Kh6 {[%clk 0:00:40]} 38. Kd1 {[%clk 0:00:01]}  Kh5 {[%clk 0:00:40]} 39. Ke1 {[%clk 0:00:01]}  Rxc2 {[%clk 0:00:36]} 40. Rd4 {[%clk 0:00:01]}  Rxa2 {[%clk 0:00:34]} 41. Rxb4 {[%clk 0:00:02]}  Rb2 {[%clk 0:00:34]} 42. Rb7 {[%clk 0:00:02]}  h6 {[%clk 0:00:30]} 43. Rb4 {[%clk 0:00:02]}  Bg4 {[%clk 0:00:28]} 44. Kf1 {[%clk 0:00:01]}  Kxh4 {[%clk 0:00:28]} 45. Rb6 {[%clk 0:00:02]}  Bf5 {[%clk 0:00:23]} 46. Ke1 {[%clk 0:00:01]}  h5 {[%clk 0:00:24]} 47. b4 {[%clk 0:00:01]}  Kg3 {[%clk 0:00:24]} 0-1


[Site "https://www.chess.com"]

[Event "Titled Tuesday Blitz November 01 Early 2022"]
[White "Parligras, Mircea-Emilian"]
[Black "Ilkhomi, Jaloliddin"]
[WhiteFideId "1204297"]
[BlackFideId "14700948"]
[WhiteElo "2507"]
[BlackElo "2045"]
[Result "1-0"]
[Round "09"]
[TimeControl "180+1"]
[Date "2022.11.02"]
[WhiteClock "0:00:47"]
[BlackClock "0:00:35"]

1. d4 {[%clk 0:03:00]}  Nf6 {[%clk 0:02:58]} 2. c4 {[%clk 0:03:00]}  e6 {[%clk 0:02:55]} 3. Nc3 {[%clk 0:02:59]}  Bb4 {[%clk 0:02:54]} 4. Bd2 {[%clk 0:03:00]}  O-O {[%clk 0:02:54]} 5. e3 {[%clk 0:02:59]}  b6 {[%clk 0:02:54]} 6. Nf3 {[%clk 0:02:55]}  Bb7 {[%clk 0:02:54]} 7. Be2 {[%clk 0:02:49]}  Qe7 {[%clk 0:02:51]} 8. O-O {[%clk 0:02:47]}  Bxc3 {[%clk 0:02:51]} 9. Bxc3 {[%clk 0:02:47]}  Ne4 {[%clk 0:02:52]} 10. Be1 {[%clk 0:02:38]}  d6 {[%clk 0:02:52]} 11. Nd2 {[%clk 0:02:37]}  Nd7 {[%clk 0:02:44]} 12. Nxe4 {[%clk 0:02:36]}  Bxe4 {[%clk 0:02:45]} 13. f3 {[%clk 0:02:36]}  Bb7 {[%clk 0:02:45]} 14. e4 {[%clk 0:02:36]}  f5 {[%clk 0:02:43]} 15. exf5 {[%clk 0:02:27]}  exf5 {[%clk 0:02:44]} 16. Bd3 {[%clk 0:02:19]}  Rae8 {[%clk 0:02:40]} 17. Qd2 {[%clk 0:02:12]}  Qe3+ {[%clk 0:02:31]} 18. Qxe3 {[%clk 0:02:12]}  Rxe3 {[%clk 0:02:32]} 19. Rd1 {[%clk 0:02:12]}  Ba6 {[%clk 0:02:29]} 20. b3 {[%clk 0:02:06]}  d5 {[%clk 0:02:03]} 21. Bf2 {[%clk 0:02:06]}  Ree8 {[%clk 0:01:44]} 22. Rfe1 {[%clk 0:01:45]}  g6 {[%clk 0:01:18]} 23. Bg3 {[%clk 0:01:35]}  f4 {[%clk 0:01:12]} 24. Rxe8 {[%clk 0:01:33]}  Rxe8 {[%clk 0:01:06]} 25. Bxf4 {[%clk 0:01:33]}  c6 {[%clk 0:01:04]} 26. cxd5 {[%clk 0:01:18]}  Bxd3 {[%clk 0:01:03]} 27. dxc6 {[%clk 0:01:17]}  Bb5 {[%clk 0:00:55]} 28. cxd7 {[%clk 0:01:15]}  Bxd7 {[%clk 0:00:56]} 29. Kf2 {[%clk 0:01:08]}  Kf7 {[%clk 0:00:56]} 30. d5 {[%clk 0:01:07]}  Bb5 {[%clk 0:00:55]} 31. Rd2 {[%clk 0:01:06]}  a5 {[%clk 0:00:51]} 32. a4 {[%clk 0:01:05]}  Bd7 {[%clk 0:00:49]} 33. Bc7 {[%clk 0:01:05]}  b5 {[%clk 0:00:49]} 34. axb5 {[%clk 0:01:04]}  Bxb5 {[%clk 0:00:49]} 35. d6 {[%clk 0:01:03]}  a4 {[%clk 0:00:32]} 36. bxa4 {[%clk 0:01:02]}  Bd7 {[%clk 0:00:28]} 37. a5 {[%clk 0:01:01]}  Ra8 {[%clk 0:00:29]} 38. Re2 {[%clk 0:01:00]}  Kf6 {[%clk 0:00:28]} 39. Re7 {[%clk 0:00:59]}  Bc6 {[%clk 0:00:28]} 40. Rxh7 {[%clk 0:00:58]}  g5 {[%clk 0:00:28]} 41. d7 {[%clk 0:00:57]}  Bxd7 {[%clk 0:00:28]} 42. Rxd7 {[%clk 0:00:56]}  g4 {[%clk 0:00:29]} 43. fxg4 {[%clk 0:00:55]}  Kg5 {[%clk 0:00:30]} 44. h3 {[%clk 0:00:55]}  Kh4 {[%clk 0:00:30]} 45. Bd8+ {[%clk 0:00:53]}  Rxd8 {[%clk 0:00:29]} 46. Rxd8 {[%clk 0:00:54]}  Kg5 {[%clk 0:00:30]} 47. a6 {[%clk 0:00:54]}  Kh4 {[%clk 0:00:31]} 48. a7 {[%clk 0:00:54]}  Kg5 {[%clk 0:00:32]} 49. Rd5+ {[%clk 0:00:54]}  Kf4 {[%clk 0:00:33]} 50. a8=Q {[%clk 0:00:51]}  Ke4 {[%clk 0:00:34]} 51. Qc6 {[%clk 0:00:47]}  Kf4 {[%clk 0:00:35]} 52. Qc4# {[%clk 0:00:47]} 1-0


[Site "https://www.chess.com"]